bitfinex-derivatives/quotes_BTCF0:USTF0_20250503
["timestamp","ask_amount","ask_price","bid_price","bid_amount"]
[1746298701748,0.2716258,96118.0,96117.0,0.54232]
[1746298701945,0.2716258,96118.0,96117.0,0.4798]
[1746298702148,0.2716258,96118.0,96117.0,0.001]
[1746298702553,0.208045,96109.0,96108.0,0.12331198]
[1746298702750,0.2080493,96107.0,96106.0,0.06248]
[1746298703252,0.3260493,96107.0,96106.0,0.06248]
[1746298703449,0.3901493,96107.0,96106.0,0.06248]
[1746298703645,0.3891493,96107.0,96106.0,0.06248]
[1746298704354,0.3881493,96107.0,96106.0,0.06248]
[1746298704558,0.3881493,96107.0,96106.0,0.06448]
[1746298704955,0.3881493,96107.0,96106.0,0.06548]
[1746298706253,0.2701493,96107.0,96106.0,0.06548]
[1746298712953,0.2701493,96107.0,96106.0,0.06448]
[1746298713660,0.2701493,96107.0,96106.0,0.06348]
[1746298714250,0.2701493,96107.0,96106.0,0.06248]
[1746298718160,0.2701493,96107.0,96106.0,0.2705315]
[1746298721665,0.031,96107.0,96106.0,0.2705315]
[1746298721864,0.031,96107.0,96106.0,0.6944315]
[1746298722066,0.031,96107.0,96106.0,0.8124315]
[1746298726261,0.031,96107.0,96106.0,0.8134315]
[1746298740387,0.2390493,96107.0,96106.0,0.8134315]
[1746298741891,0.031,96107.0,96106.0,0.8134315]
[1746298742080,0.2390493,96107.0,96106.0,0.8134315]
[1746298742280,0.2703493,96107.0,96106.0,0.8134315]
[1746298742480,0.2703493,96107.0,96106.0,0.7831315]
[1746298744389,0.2703493,96107.0,96106.0,0.4223315]
[1746298744589,0.2703493,96107.0,96106.0,0.7831315]
[1746298745687,0.2703493,96107.0,96106.0,0.4223315]
[1746298745991,0.2703493,96107.0,96106.0,0.7831315]
[1746298747988,0.2703493,96107.0,96106.0,0.4223315]
[1746298748182,0.2703493,96107.0,96106.0,0.7831315]
[1746298749981,0.2703493,96107.0,96106.0,0.7503315]
[1746298750381,0.2703493,96107.0,96106.0,0.18148]
[1746298750787,0.2703493,96107.0,96106.0,0.3895315]
[1746298751194,0.2703493,96107.0,96106.0,0.2715315]
[1746298751883,0.2703493,96107.0,96106.0,0.2705315]
[1746298758292,0.2703493,96107.0,96106.0,0.3885315]
[1746298758895,0.0623,96107.0,96106.0,0.3885315]
[1746298759286,0.0318,96115.0,96114.0,0.2080342]
[1746298759893,0.0318,96115.0,96114.0,0.2727342]
[1746298760189,0.0318,96115.0,96114.0,0.3907342]
[1746298760701,0.2080239,96119.0,96118.0,0.2080255]
[1746298761299,0.2080239,96119.0,96118.0,0.3260255]
[1746298761888,0.2080239,96119.0,96118.0,0.3916255]
[1746298761889,0.2090239,96119.0,96118.0,0.3916255]
[1746298762296,0.2080239,96119.0,96118.0,0.3916255]
[1746298762497,0.2753239,96119.0,96118.0,0.3916255]
[1746298763300,0.2763239,96119.0,96118.0,0.3916255]
[1746298764395,0.0683,96119.0,96118.0,0.3916255]
[1746298764698,0.0313,96128.0,96127.0,0.208006]
[1746298765299,0.2393039,96128.0,96127.0,0.326006]
[1746298765499,0.2393039,96128.0,96127.0,0.390306]
[1746298766102,0.2413039,96128.0,96127.0,0.390306]
[1746298766293,0.2433039,96128.0,96127.0,0.390306]
[1746298768098,0.2737039,96128.0,96127.0,0.240806]
[1746298769104,0.2737039,96128.0,96127.0,0.358806]
[1746298774912,0.2424039,96128.0,96127.0,0.358806]
[1746298775113,0.2120039,96128.0,96127.0,0.358806]
[1746298778013,0.004,96128.0,96127.0,0.358806]
[1746298780518,0.0015,96130.0,96129.0,0.2080017]
[1746298780713,0.0611,96143.0,96140.0,0.051994]
[1746298780918,0.2690722,96143.0,96142.0,0.5687736]
[1746298781223,0.2690722,96143.0,96142.0,0.6867736]
[1746298781409,0.2690722,96143.0,96142.0,0.7491736]
[1746298782315,0.2690722,96143.0,96142.0,0.6311736]
[1746298782517,0.2750722,96143.0,96142.0,0.6321736]
[1746298782717,0.2750722,96143.0,96142.0,0.68322286]
[1746298783312,0.2790722,96143.0,96142.0,0.68322286]
[1746298787725,0.2790722,96143.0,96142.0,0.65082286]
[1746298800425,0.2790722,96143.0,96142.0,0.05204926]
[1746298801026,0.2790722,96143.0,96142.0,0.29022286]
[1746298801331,0.2790722,96143.0,96142.0,0.26002286]
[1746298801925,0.2790722,96143.0,96142.0,0.05204926]
[1746298809125,0.2790722,96143.0,96142.0,0.08454926]
[1746298810734,0.2790722,96143.0,96142.0,0.29252286]
[1746298811536,0.2790722,96143.0,96142.0,0.08454926]
[1746298816839,0.2790722,96143.0,96142.0,0.29252286]
[1746298819142,0.2790722,96143.0,96142.0,0.41052286]
[1746298820139,0.2790722,96143.0,96142.0,0.29252286]
[1746298821145,0.2790722,96143.0,96142.0,0.41052286]
[1746298822144,0.2790722,96143.0,96142.0,0.29252286]
[1746298823035,0.2790722,96143.0,96142.0,0.41052286]
[1746298829248,0.2790722,96143.0,96142.0,0.44152286]
[1746298829948,0.01,96143.0,96142.0,0.80232286]
[1746298834453,0.01,96143.0,96142.0,0.44152286]
[1746298834656,0.01,96143.0,96142.0,0.80232286]
[1746298837653,0.01,96143.0,96142.0,0.61884681]
[1746298838951,0.01,96143.0,96142.0,0.663231]
[1746298841057,0.01,96143.0,96142.0,0.694831]
[1746298842255,0.01,96143.0,96142.0,0.576831]
[1746298843162,0.01,96143.0,96142.0,0.694831]
[1746298843458,0.0421,96143.0,96142.0,0.694831]
[1746298844160,0.0421,96143.0,96142.0,0.334031]
[1746298844361,0.0421,96143.0,96142.0,0.694831]
[1746298845361,0.2500714,96143.0,96142.0,0.694831]
[1746298847169,0.2500714,96143.0,96142.0,0.576831]
[1746298847864,0.2500714,96143.0,96142.0,0.40424347]
[1746298848058,0.2500714,96143.0,96142.0,0.61221707]
[1746298851053,0.2500714,96143.0,96142.0,0.64241707]
[1746298852167,0.2500714,96143.0,96142.0,0.28161707]
[1746298852373,0.2500714,96143.0,96142.0,0.64241707]
[1746298856475,0.2500714,96143.0,96142.0,0.61221707]
[1746298860064,0.2500714,96143.0,96142.0,0.37264347]
[1746298860379,0.2079736,96142.0,96141.0,0.06276]
[1746298860573,0.2079974,96131.0,96129.0,0.38075309]
[1746298860979,0.2079974,96131.0,96130.0,0.37138533]
[1746298861177,0.3259974,96131.0,96130.0,0.37138533]
[1746298861377,0.3874974,96131.0,96130.0,0.37138533]
[1746298862170,0.2714974,96131.0,96130.0,0.37138533]
[1746298862479,0.6322974,96131.0,96130.0,0.04370297]
[1746298862672,0.2079995,96130.0,96129.0,0.06308]
[1746298863173,0.2723995,96130.0,96129.0,0.06308]
[1746298863373,0.2723995,96130.0,96129.0,0.1068048]
[1746298864281,0.3029995,96130.0,96129.0,0.3148065]
[1746298864778,0.3039995,96130.0,96129.0,0.2517265]
[1746298865166,0.3059995,96130.0,96129.0,0.2517265]
[1746298865585,0.3059995,96130.0,96129.0,0.0437248]
[1746298865774,0.208006,96127.0,96126.0,0.2080078]
[1746298866983,0.2080082,96126.0,96125.0,0.06308]
[1746298867178,0.2386082,96126.0,96125.0,0.2710904]
[1746298868575,0.2396082,96126.0,96125.0,0.2710904]
[1746298869279,0.2406082,96126.0,96125.0,0.2710904]
[1746298869480,0.2406082,96126.0,96125.0,0.31561712]
[1746298872173,0.2406082,96126.0,96125.0,0.34831712]
[1746298873083,0.2406082,96126.0,96125.0,0.46631712]
[1746298881193,0.2406082,96126.0,96125.0,0.34831712]
[1746298881888,0.2406082,96126.0,96125.0,0.10760672]
[1746298884284,0.3586082,96126.0,96125.0,0.31561712]
[1746298885092,0.2406082,96126.0,96125.0,0.31561712]
[1746298886185,0.3586082,96126.0,96125.0,0.31561712]
[1746298887194,0.2406082,96126.0,96125.0,0.31561712]
[1746298890193,0.3586082,96126.0,96125.0,0.31561712]
[1746298892396,0.2406082,96126.0,96125.0,0.31561712]
[1746298893187,0.2406082,96126.0,96125.0,0.10760672]
[1746298893389,0.0519932,96143.0,96136.0,0.0519962]
[1746298893584,0.2911801,96138.0,96137.0,0.2390822]
[1746298893893,0.0314,96147.0,96146.0,0.2079628]
[1746298893894,0.2079659,96147.0,96146.0,0.2079628]
[1746298894085,0.0312,96153.0,96147.0,0.2079628]
[1746298894297,0.28710679,96148.0,96147.0,0.2390628]
[1746298894487,0.28710679,96148.0,96147.0,0.2697628]
[1746298895094,0.28710679,96148.0,96147.0,0.3877628]
[1746298895791,0.29210679,96148.0,96147.0,0.3877628]
[1746298895998,0.2129606,96148.0,96147.0,0.3877628]
[1746298896299,0.2189606,96148.0,96147.0,0.2707628]
[1746298897190,0.2189606,96148.0,96147.0,0.3887628]
[1746298897998,0.2189606,96148.0,96147.0,0.7495628]
[1746298898495,0.011,96148.0,96147.0,0.7495628]
[1746298899391,0.2189606,96148.0,96147.0,0.7495628]
[1746298900698,0.011,96148.0,96147.0,0.7495628]
[1746298901590,0.0424,96148.0,96147.0,0.7495628]
[1746298902490,0.0756,96148.0,96147.0,0.7495628]
[1746298904902,0.2835606,96148.0,96147.0,0.7495628]
[1746298911506,0.2835606,96148.0,96147.0,0.7184628]
[1746298915303,0.2835606,96148.0,96147.0,0.6004628]
[1746298916093,0.2835606,96148.0,96147.0,0.7184628]
[1746298918095,0.2835606,96148.0,96147.0,0.6004628]
[1746298919207,0.2835606,96148.0,96147.0,0.7184628]
[1746298919400,0.2835606,96148.0,96147.0,0.119]
[1746298920104,0.2835606,96148.0,96147.0,0.001]
[1746298920902,0.2835606,96148.0,96147.0,0.2089628]
[1746298921899,0.0756,96148.0,96147.0,0.2089628]
[1746298922096,0.2835606,96148.0,96147.0,0.6877628]
[1746298923503,0.0756,96148.0,96147.0,0.6877628]
[1746298924301,0.2835606,96148.0,96147.0,0.6877628]
[1746298925803,0.2835606,96148.0,96147.0,0.3269628]
[1746298926008,0.2835606,96148.0,96147.0,0.6877628]
[1746298928108,0.2835606,96148.0,96147.0,0.001]
[1746298928615,0.2835606,96148.0,96147.0,0.2089628]
[1746298929205,0.2815606,96148.0,96147.0,0.2089628]
[1746298929914,0.2815606,96148.0,96147.0,0.5697628]
[1746298930117,0.2815606,96148.0,96147.0,0.2089628]
[1746298930311,0.2815606,96148.0,96147.0,0.2420628]
[1746298930713,0.2815606,96148.0,96147.0,0.6028628]
[1746298932619,0.0736,96148.0,96147.0,0.6028628]
[1746298932822,0.0736,96148.0,96147.0,0.6338628]
[1746298933118,0.0736,96148.0,96147.0,0.7518628]
[1746298935617,0.2815606,96148.0,96147.0,0.7518628]
[1746298938324,0.2815606,96148.0,96147.0,0.7208628]
[1746298939926,0.2815606,96148.0,96147.0,0.3600628]
[1746298940124,0.2815606,96148.0,96147.0,0.7208628]
[1746298941027,0.2815606,96148.0,96147.0,0.119]
[1746298941326,0.2815606,96148.0,96147.0,0.001]
[1746298942221,0.3995606,96148.0,96147.0,0.001]
[1746298943126,0.2815606,96148.0,96147.0,0.001]
[1746298944327,0.3995606,96148.0,96147.0,0.001]
[1746298947222,0.3995606,96148.0,96147.0,0.2089628]
[1746298948124,0.2815606,96148.0,96147.0,0.2089628]
[1746298948526,0.2815606,96148.0,96147.0,0.001]
[1746298951219,0.2815606,96148.0,96147.0,0.119]
[1746298952228,0.2815606,96148.0,96147.0,0.001]
[1746298955329,0.2079692,96144.0,96143.0,0.1494758]
[1746298956835,0.2109692,96144.0,96143.0,0.1494758]
[1746298957021,0.2109692,96144.0,96143.0,0.2988758]
[1746298957225,0.2159692,96144.0,96143.0,0.2998758]
[1746298957525,0.2482692,96144.0,96143.0,0.2998758]
[1746298957727,0.2807692,96144.0,96143.0,0.2998758]
[1746298958729,0.2807692,96144.0,96143.0,0.3319758]
[1746298960136,0.2807692,96144.0,96143.0,0.2139758]
[1746298962939,0.2482692,96144.0,96143.0,0.2139758]
[1746298963132,0.2482692,96144.0,96143.0,0.3319758]
[1746298968339,0.0403,96144.0,96143.0,0.3319758]
[1746298968535,0.008,96144.0,96143.0,0.3319758]
[1746298972251,0.008,96144.0,96143.0,0.6927758]
[1746298980660,0.008,96144.0,96143.0,0.7559358]
[1746298981061,0.2159692,96144.0,96143.0,0.6924358]
[1746298981358,0.2159692,96144.0,96143.0,0.3618]
[1746298981564,0.2159692,96144.0,96143.0,0.001]
[1746298981860,0.2798692,96144.0,96143.0,0.001]
[1746298986460,0.6406692,96144.0,96143.0,0.001]
[1746298996274,0.6406692,96144.0,96143.0,0.119]
[1746298998980,0.2798692,96144.0,96143.0,0.119]
[1746299002167,0.2798692,96144.0,96143.0,0.001]
[1746299003066,0.2798692,96144.0,96143.0,0.119]
[1746299045611,0.2079844,96137.0,96136.0,0.02654769]
[1746299046309,0.2079844,96137.0,96136.0,0.14454769]
[1746299046809,0.2109844,96137.0,96136.0,0.14454769]
[1746299047007,0.2119844,96137.0,96136.0,0.14454769]
[1746299048301,0.2119844,96137.0,96136.0,0.71333419]
[1746299048496,0.2119844,96137.0,96136.0,0.50534769]
[1746299048697,0.2119844,96137.0,96136.0,0.52794769]
[1746299053713,0.2119844,96137.0,96136.0,0.73593419]
[1746299061912,0.004,96137.0,96136.0,0.73593419]
[1746299062318,0.2119844,96137.0,96136.0,0.73593419]
[1746299062519,0.004,96137.0,96136.0,0.83995419]
[1746299063724,0.2119844,96137.0,96136.0,0.83995419]
[1746299064018,0.2439844,96137.0,96136.0,0.83995419]
[1746299065018,0.2439844,96137.0,96136.0,0.73593419]
[1746299071923,0.2439844,96137.0,96136.0,0.37513419]
[1746299072126,0.2439844,96137.0,96136.0,0.73593419]
[1746299078123,0.2439844,96137.0,96136.0,0.71333419]
[1746299083436,0.2439844,96137.0,96136.0,0.6867865]
[1746299091548,0.13112499,96169.0,96151.0,0.2599328]
[1746299091734,0.2079583,96152.0,96151.0,0.2599328]
[1746299093142,0.2079583,96152.0,96151.0,0.3779328]
[1746299093341,0.2129583,96152.0,96151.0,0.3779328]
[1746299093542,0.2129583,96152.0,96151.0,0.3789328]
[1746299094944,0.2189583,96152.0,96151.0,0.3789328]
[1746299095146,0.2819583,96152.0,96151.0,0.3789328]
[1746299095747,0.2819583,96152.0,96151.0,0.38672873]
[1746299108152,0.2819583,96152.0,96151.0,0.41922873]
[1746299108352,0.2819583,96152.0,96151.0,0.44952873]
[1746299109953,0.074,96152.0,96151.0,0.44952873]
[1746299110256,0.2819519,96152.0,96151.0,0.44952873]
[1746299112956,0.0437,96152.0,96151.0,0.44952873]
[1746299113253,0.2079285,96163.0,96162.0,0.2599081]
[1746299113556,0.2079285,96163.0,96162.0,0.6207081]
[1746299113949,0.2079285,96163.0,96162.0,0.6517081]
[1746299114254,0.2079285,96163.0,96162.0,0.7697081]
[1746299114762,0.2079285,96163.0,96162.0,0.8008081]
[1746299114950,0.2434285,96163.0,96162.0,0.8008081]
[1746299115258,0.2434285,96163.0,96162.0,0.6828081]
[1746299115458,0.2394285,96163.0,96162.0,0.6527081]
[1746299115660,0.2394285,96163.0,96162.0,0.569726]
[1746299116351,0.2711285,96163.0,96162.0,0.569726]
[1746299122766,0.2711285,96163.0,96162.0,0.601026]
[1746299126967,0.2711285,96163.0,96162.0,0.3931]
[1746299127668,0.2711285,96163.0,96162.0,0.601026]
[1746299138270,0.2711285,96163.0,96162.0,0.631526]
[1746299143376,0.2711285,96163.0,96162.0,0.694166]
[1746299145183,0.2396285,96163.0,96162.0,0.694166]
[1746299150082,0.2396285,96163.0,96162.0,0.333366]
[1746299150287,0.2396285,96163.0,96162.0,0.694166]
[1746299150680,0.0015,96165.0,96164.0,0.207926]
[1746299151079,0.2094238,96165.0,96164.0,0.207926]
[1746299151280,0.2094238,96165.0,96164.0,0.325926]
[1746299151689,0.2104238,96165.0,96164.0,0.325926]
[1746299151891,0.2417238,96165.0,96164.0,0.35742765]
[1746299152191,0.2417238,96165.0,96164.0,0.23942765]
[1746299152488,0.2737238,96165.0,96164.0,0.23942765]
[1746299172325,0.2737238,96165.0,96164.0,0.30206765]
[1746299175832,0.2737238,96165.0,96164.0,0.09414165]
[1746299177221,0.2737238,96165.0,96164.0,0.30206765]
[1746299179123,0.3917238,96165.0,96164.0,0.30206765]
[1746299182124,0.2737238,96165.0,96164.0,0.30206765]
[1746299182534,0.2417238,96165.0,96164.0,0.30206765]
[1746299183223,0.2417238,96165.0,96164.0,0.36386765]
[1746299214252,0.2417238,96165.0,96164.0,0.48186765]
[1746299215257,0.2417238,96165.0,96164.0,0.36386765]
[1746299220460,0.207926,96164.0,96163.0,0.32696319]
[1746299220660,0.270426,96164.0,96163.0,0.38984319]
[1746299221159,0.388426,96164.0,96163.0,0.59777139]
[1746299222365,0.270426,96164.0,96163.0,0.59777139]
[1746299222765,0.270426,96164.0,96163.0,0.2708082]
[1746299223060,0.270426,96164.0,96163.0,0.29890336]
[1746299223265,0.270426,96164.0,96163.0,0.29990336]
[1746299234967,0.270426,96164.0,96163.0,0.33290336]
[1746299235166,0.238726,96164.0,96163.0,0.33290336]
[1746299243179,0.207926,96164.0,96163.0,0.33290336]
[1746299243378,0.241126,96164.0,96163.0,0.33290336]
[1746299244081,0.241126,96164.0,96163.0,0.45090336]
[1746299250881,0.0332,96164.0,96163.0,0.45090336]
[1746299251086,0.241126,96164.0,96163.0,0.45090336]
[1746299252981,0.0332,96164.0,96163.0,0.45090336]
[1746299253184,0.2079091,96172.0,96171.0,0.2598837]
[1746299253389,0.2079091,96172.0,96171.0,0.3541837]
[1746299254089,0.2079091,96172.0,96171.0,0.4721837]
[1746299254284,0.2089091,96172.0,96171.0,0.4721837]
[1746299257286,0.2109091,96172.0,96171.0,0.4721837]
[1746299259494,0.003,96172.0,96171.0,0.4721837]
[1746299259693,0.003,96172.0,96171.0,0.8329837]
[1746299263896,0.003,96172.0,96171.0,0.65956693]
[1746299264195,0.003,96172.0,96171.0,0.71154413]
[1746299264495,0.003,96172.0,96171.0,0.35074413]
[1746299264695,0.003,96172.0,96171.0,0.71154413]
[1746299269101,0.003,96172.0,96171.0,0.59354413]
[1746299270699,0.0319,96173.0,96171.0,0.59354413]
[1746299270700,0.2078927,96180.0,96179.0,0.2078936]
[1746299270901,0.2078927,96180.0,96179.0,0.2707736]
[1746299272498,0.2078927,96180.0,96179.0,0.2717736]
[1746299272698,0.2078927,96180.0,96179.0,0.2727736]
[1746299273904,0.2404927,96180.0,96179.0,0.2727736]
[1746299275107,0.2404927,96180.0,96179.0,0.6335736]
[1746299279500,0.0326,96180.0,96179.0,0.6335736]
[1746299279697,0.2404914,96180.0,96179.0,0.6335736]
[1746299280802,0.2719914,96180.0,96179.0,0.6335736]
[1746299281103,0.3899914,96180.0,96179.0,0.6335736]
[1746299282102,0.3899914,96180.0,96179.0,0.42568]
[1746299282800,0.3899914,96180.0,96179.0,0.6335736]
[1746299283701,0.3899914,96180.0,96179.0,0.42568]
[1746299284097,0.3899914,96180.0,96179.0,0.6335736]
[1746299284507,0.3899914,96180.0,96179.0,0.42568]
[1746299285507,0.3889195,96180.0,96179.0,0.42568]
[1746299292723,0.3889195,96180.0,96179.0,0.06488]
[1746299303328,0.7497195,96180.0,96179.0,0.06488]
[1746299304720,0.7497195,96180.0,96179.0,0.002]
[1746299306519,0.7497195,96180.0,96179.0,0.0331]
[1746299307020,0.3889195,96180.0,96179.0,0.0331]
[1746299307219,0.7497195,96180.0,96179.0,0.0331]
[1746299308422,0.3889195,96180.0,96179.0,0.0331]
[1746299308629,0.7497195,96180.0,96179.0,0.0331]
[1746299313032,0.7182195,96180.0,96179.0,0.0331]
[1746299313232,0.7182195,96180.0,96179.0,0.0658]
[1746299324135,0.6002195,96180.0,96179.0,0.0658]
[1746299326134,0.7182195,96180.0,96179.0,0.0658]
[1746299327238,0.6002195,96180.0,96179.0,0.0658]
[1746299331036,0.5686914,96180.0,96179.0,0.0658]
[1746299332137,0.5686914,96180.0,96179.0,0.1838]
[1746299334129,0.5686914,96180.0,96179.0,0.0658]
[1746299336035,0.5686914,96180.0,96179.0,0.0969]
[1746299336736,0.5686914,96180.0,96179.0,0.3047936]
[1746299338435,0.5686914,96180.0,96179.0,0.0969]
[1746299340139,0.5686914,96180.0,96179.0,0.2149]
[1746299341243,0.5686914,96180.0,96179.0,0.0969]
[1746299341942,0.051972,96182.0,96179.0,0.0969]
[1746299341943,0.001,96186.0,96182.0,0.0519717]
[1746299342243,0.2088784,96186.0,96185.0,0.2078806]
[1746299343139,0.2088784,96186.0,96185.0,0.3258806]
[1746299343843,0.2098784,96186.0,96185.0,0.3258806]
[1746299344344,0.2098784,96186.0,96185.0,0.2078806]
[1746299352149,0.3278784,96186.0,96185.0,0.2078806]
[1746299357855,0.3602784,96186.0,96185.0,0.2078806]
[1746299363554,0.3914784,96186.0,96185.0,0.2078806]
[1746299365151,0.3590784,96186.0,96185.0,0.2078806]
[1746299367361,0.3590784,96186.0,96185.0,0.5686806]
[1746299373065,0.2410784,96186.0,96185.0,0.5686806]
[1746299373467,0.002,96186.0,96185.0,0.5686806]
[1746299379063,0.12,96186.0,96185.0,0.5686806]
[1746299380272,0.002,96186.0,96185.0,0.5686806]
[1746299383073,0.12,96186.0,96185.0,0.5686806]
[1746299384776,0.12,96186.0,96185.0,0.6318406]
[1746299397169,0.002,96186.0,96185.0,0.6318406]
[1746299398083,0.12,96186.0,96185.0,0.6318406]
[1746299399085,0.002,96186.0,96185.0,0.6318406]
[1746299401095,0.12,96186.0,96185.0,0.6318406]
[1746299407288,0.002,96186.0,96185.0,0.6318406]
[1746299408090,0.12,96186.0,96185.0,0.6318406]
[1746299409989,0.05587888,96186.0,96185.0,0.6318406]
[1746299410299,0.033,96190.0,96189.0,0.2078719]
[1746299411192,0.151,96190.0,96189.0,0.2078719]
[1746299412185,0.151,96190.0,96189.0,0.2108719]
[1746299412894,0.151,96190.0,96189.0,0.2138719]
[1746299417992,0.118,96190.0,96189.0,0.2138719]
[1746299425993,0.118,96190.0,96189.0,0.05377548]
[1746299426200,0.118,96190.0,96189.0,0.006]
[1746299426405,0.118,96190.0,96189.0,0.2138719]
[1746299429399,0.0321,96194.0,96193.0,0.2078633]
[1746299429599,0.0321,96194.0,96193.0,0.5686633]
[1746299430201,0.0321,96194.0,96193.0,0.6330633]
[1746299430693,0.0321,96194.0,96193.0,0.6350633]
[1746299431094,0.1501,96194.0,96193.0,0.6370633]
[1746299432599,0.3579611,96194.0,96193.0,0.3648]
[1746299432802,0.1501,96194.0,96193.0,0.6355033]
[1746299432996,0.3579611,96194.0,96193.0,0.6355033]
[1746299433194,0.1501,96194.0,96193.0,0.6355033]
[1746299433895,0.1821,96194.0,96193.0,0.6355033]
[1746299434995,0.3899611,96194.0,96193.0,0.6355033]
[1746299436303,0.1821,96194.0,96193.0,0.6355033]
[1746299448710,0.1821,96194.0,96193.0,0.6973033]
[1746299449514,0.118,96194.0,96193.0,0.6973033]
[1746299452113,0.118,96194.0,96193.0,0.3365033]
[1746299452304,0.118,96194.0,96193.0,0.6973033]
[1746299455019,0.118,96194.0,96193.0,0.6344633]
[1746299455211,0.118,96194.0,96193.0,0.6972633]
[1746299462216,0.118,96194.0,96193.0,0.96223915]
[1746299467115,0.1015,96200.0,96199.0,0.2078503]
[1746299467916,0.1015,96200.0,96199.0,0.2692503]
[1746299468119,0.2195,96200.0,96199.0,0.2692503]
[1746299468425,0.2195,96200.0,96199.0,0.3330503]
[1746299468626,0.2195,96200.0,96199.0,0.3340503]
[1746299468925,0.2821,96200.0,96199.0,0.3340503]
[1746299469528,0.4899482,96200.0,96199.0,0.3340503]
[1746299469730,0.2821,96200.0,96199.0,0.3340503]
[1746299471233,0.3133,96200.0,96199.0,0.3340503]
[1746299474535,0.5211482,96200.0,96199.0,0.3340503]
[1746299482151,0.4031482,96200.0,96199.0,0.3340503]
[1746299489252,0.5211482,96200.0,96199.0,0.3340503]
[1746299491455,0.4899482,96200.0,96199.0,0.3340503]
[1746299507162,0.4899482,96200.0,96199.0,0.6948503]
[1746299510974,0.4899482,96200.0,96199.0,0.95982615]
[1746299514474,0.4899482,96200.0,96199.0,0.6948503]
[1746299516780,0.4899482,96200.0,96199.0,0.6320503]
[1746299517077,0.4899482,96200.0,96199.0,0.6948103]
[1746299527383,0.4899482,96200.0,96199.0,0.48696]
[1746299527683,0.4899482,96200.0,96199.0,0.6948103]
[1746299529284,0.4899482,96200.0,96199.0,0.9597827]
[1746299531281,0.4899482,96200.0,96199.0,0.5989827]
[1746299531481,0.4899482,96200.0,96199.0,0.9597827]
[1746299537490,0.4899482,96200.0,96199.0,0.6948103]
[1746299552896,0.4899482,96200.0,96199.0,0.9596941]
[1746299558804,0.4899482,96200.0,96199.0,0.5988941]
[1746299563308,0.4899482,96200.0,96199.0,0.3340103]
[1746299564302,0.3719482,96200.0,96199.0,0.3340103]
[1746299567111,0.4899482,96200.0,96199.0,0.3340103]
[1746299569215,0.3719482,96200.0,96199.0,0.3340103]
[1746299570119,0.4899482,96200.0,96199.0,0.3340103]
[1746299570619,0.4899482,96200.0,96199.0,0.5988941]
[1746299581529,0.4899482,96200.0,96199.0,0.3340103]
[1746299608643,0.4899482,96200.0,96199.0,0.59880758]
[1746299612141,0.3719482,96200.0,96199.0,0.59880758]
[1746299617947,0.3719482,96200.0,96199.0,0.3340103]
[1746299629360,0.4899482,96200.0,96199.0,0.3340103]
[1746299631164,0.3719482,96200.0,96199.0,0.3340103]
[1746299634074,0.4899482,96200.0,96199.0,0.3340103]
[1746299636174,0.3719482,96200.0,96199.0,0.3340103]
[1746299637277,0.4899482,96200.0,96199.0,0.3340103]
[1746299638277,0.3719482,96200.0,96199.0,0.3340103]
[1746299640074,0.4899482,96200.0,96199.0,0.3340103]
[1746299641878,0.4899482,96200.0,96199.0,0.09516]
[1746299642072,0.4899482,96200.0,96199.0,0.06476]
[1746299643779,0.4899482,96200.0,96199.0,0.2726103]
[1746299645585,0.4899482,96200.0,96199.0,0.3047103]
[1746299665207,0.3719482,96200.0,96199.0,0.3047103]
[1746299668110,0.4899482,96200.0,96199.0,0.3047103]
[1746299671201,0.3719482,96200.0,96199.0,0.3047103]
[1746299677217,0.4899482,96200.0,96199.0,0.3047103]
[1746299689524,0.4899482,96200.0,96199.0,0.3352103]
[1746299691324,0.3719482,96200.0,96199.0,0.3352103]
[1746299692220,0.4899482,96200.0,96199.0,0.59986448]
[1746299692624,0.4899482,96200.0,96199.0,0.51415185]
[1746299695522,0.4899482,96200.0,96199.0,0.24949767]
[1746299714243,0.4273482,96200.0,96199.0,0.24949767]
[1746299715038,0.4583482,96200.0,96199.0,0.24949767]
[1746299715243,0.3403482,96200.0,96199.0,0.24949767]
[1746299718143,0.4583482,96200.0,96199.0,0.24949767]
[1746299718347,0.2505,96200.0,96199.0,0.24949767]
[1746299719138,0.1325,96200.0,96199.0,0.24949767]
[1746299719740,0.33688653,96218.0,96199.0,0.09314]
[1746299719936,0.0939,96223.0,96222.0,0.2078007]
[1746299720145,0.0939,96223.0,96222.0,0.3258007]
[1746299720951,0.3608,96228.0,96223.0,0.2077985]
[1746299721142,0.3608,96228.0,96223.0,0.3582985]
[1746299721339,0.0619,96230.0,96223.0,0.7190985]
[1746299721747,0.0619,96230.0,96223.0,0.72696449]
[1746299724751,0.0619,96230.0,96223.0,0.75435042]
[1746299725553,0.0619,96230.0,96229.0,0.2077855]
[1746299726144,0.0619,96230.0,96229.0,0.3257855]
[1746299726648,0.2716855,96230.0,96229.0,0.3257855]
[1746299727456,0.2726855,96230.0,96229.0,0.3257855]
[1746299729053,0.2726855,96230.0,96229.0,0.2077855]
[1746299730450,0.2726855,96230.0,96229.0,0.5685855]
[1746299731160,0.0649,96230.0,96229.0,0.6865855]
[1746299732161,0.0649,96230.0,96229.0,0.5685855]
[1746299732655,0.2726834,96230.0,96229.0,0.5685855]
[1746299736157,0.2726834,96230.0,96229.0,0.6865855]
[1746299736965,0.2726834,96230.0,96229.0,0.3257855]
[1746299737166,0.2726834,96230.0,96229.0,0.5685855]
[1746299738553,0.2410834,96230.0,96229.0,0.5685855]
[1746299738756,0.2107834,96230.0,96229.0,0.5685855]
[1746299739262,0.2107834,96230.0,96229.0,0.6865855]
[1746299739766,0.2107834,96230.0,96229.0,0.7172855]
[1746299740067,0.2107834,96230.0,96229.0,0.5992855]
[1746299741563,0.2107834,96230.0,96229.0,0.6312855]
[1746299742165,0.2107834,96230.0,96229.0,0.7492855]
[1746299742865,0.2411834,96230.0,96229.0,0.7492855]
[1746299743267,0.2411834,96230.0,96229.0,0.6312855]
[1746299746171,0.2411834,96230.0,96229.0,0.6629855]
[1746299747162,0.2411834,96230.0,96229.0,0.7809855]
[1746299747669,0.0334,96230.0,96229.0,0.7809855]
[1746299748054,0.2411834,96230.0,96229.0,0.7809855]
[1746299748261,0.2719834,96230.0,96229.0,0.6629855]
[1746299748769,0.0642,96230.0,96229.0,0.6629855]
[1746299750659,0.2719834,96230.0,96229.0,0.6629855]
[1746299755369,0.2719834,96230.0,96229.0,0.6309855]
[1746299757668,0.2719834,96230.0,96229.0,0.6935855]
[1746299758173,0.3899834,96230.0,96229.0,0.6935855]
[1746299759478,0.3899834,96230.0,96229.0,0.6618855]
[1746299760475,0.3899834,96230.0,96229.0,0.4541]
[1746299760776,0.3899834,96230.0,96229.0,0.71875418]
[1746299761276,0.3899834,96230.0,96229.0,0.92653968]